bitfinex/quotes_ETHUSD_20220112
["timestamp","ask_amount","ask_price","bid_price","bid_amount"]
[1641992767672,0.04496367,3317.0,3316.4,0.00852635]
[1641992767866,1.11771772,3317.2,3316.4,0.00852635]
[1641992767867,0.1206,3316.9,3316.4,0.00852635]
[1641992768070,1.41771772,3317.2,3316.4,0.00852635]
[1641992768071,0.1206,3317.1,3316.4,0.00852635]
[1641992768272,0.75399,3316.8,3316.4,0.00852635]
[1641992768473,1.20216655,3316.6,3316.4,0.00852635]
[1641992768869,0.1206,3317.1,3316.4,0.00852635]
[1641992769070,0.1205,3317.4,3316.4,0.00852635]
[1641992769274,1.2133,3317.6,3316.4,0.00852635]
[1641992769470,1.2133,3317.6,3316.4,1.10382635]
[1641992769671,1.2133,3317.6,3316.4,3.40382635]
[1641992769871,1.2133,3317.6,3317.0,0.75369]
[1641992770069,1.50513265,3317.9,3317.0,0.75369]
[1641992770275,0.1205,3317.8,3317.1,0.00454739]
[1641992771531,0.87428,3317.8,3317.1,3.00454739]
[1641992771934,0.1205,3317.8,3317.2,0.00397896]
[1641992772536,0.1205,3317.8,3317.1,2.09833021]
[1641992772738,1.23626988,3317.4,3317.1,2.09833021]
[1641992772937,1.53626988,3317.4,3317.1,2.09833021]
[1641992773534,0.1205,3317.3,3317.1,2.09833021]
[1641992774136,1.53626988,3317.4,3317.1,2.09833021]
[1641992774772,1.53626988,3317.4,3316.0,10.0]
[1641992774773,8.05294563,3317.3,3316.0,10.0]
[1641992774965,0.435,3317.2,3316.0,10.0]
[1641992775174,1.16957078,3317.1,3316.1,0.00625266]
[1641992775371,0.03604135,3316.7,3316.1,0.00625266]
[1641992775571,1.53512984,3316.6,3316.1,0.00625266]
[1641992775773,0.04826908,3316.4,3316.0,8.64925266]
[1641992776274,0.00113684,3316.3,3316.0,8.59925266]
[1641992776672,0.00170527,3316.4,3316.0,8.59925266]
[1641992777072,0.00113684,3316.3,3316.0,8.59925266]
[1641992777486,0.00170527,3316.4,3316.0,8.59925266]
[1641992777875,0.00113684,3316.3,3316.0,8.59925266]
[1641992778433,0.00170527,3316.4,3316.0,8.59925266]
[1641992778640,0.75577527,3316.4,3316.0,8.59925266]
[1641992778834,0.03374498,3316.2,3316.0,7.63337594]
[1641992779138,0.00113684,3316.3,3316.0,7.63337594]
[1641992781140,0.874797,3316.2,3316.0,7.63337594]
[1641992781339,1.174797,3316.2,3316.0,7.63337594]
[1641992781737,1.174797,3316.2,3316.0,6.72753373]
[1641992781987,5.53396387,3316.1,3316.0,6.72753373]
[1641992782198,5.95456387,3316.1,3316.0,6.72753373]
[1641992782389,5.95456387,3316.1,3314.1,6.57641142]
[1641992782390,0.78810751,3315.5,3314.1,6.57641142]
[1641992782595,0.78810751,3315.5,3313.9,1.55941759]
[1641992782596,0.4206,3315.4,3313.9,1.55941759]
[1641992782795,0.4206,3315.4,3314.2,0.01080005]
[1641992782993,0.1206,3315.5,3314.2,0.01080005]
[1641992783187,1.41582867,3315.1,3314.2,0.01080005]
[1641992783610,0.3,3315.1,3314.2,0.01080005]
[1641992783988,0.3,3315.4,3314.1,2.01136847]
[1641992784189,0.4206,3315.4,3314.1,2.0]
[1641992784491,1.1749,3315.4,3314.0,2.58147275]
[1641992784690,1.52135528,3315.3,3314.1,3.01475632]
[1641992784889,1.1749,3315.4,3314.1,4.03181275]
[1641992784890,0.8749,3315.4,3314.1,4.03181275]
[1641992785091,1.1429,3315.5,3314.2,4.53957036]
[1641992785289,1.1429,3315.5,3314.2,2.56953585]
[1641992785290,0.3,3315.3,3314.2,2.56953585]
[1641992785491,0.4206,3315.4,3315.3,0.07535139]
[1641992785734,6.62488,3315.4,3315.3,0.07535139]
[1641992785928,6.62488,3315.4,3315.3,0.07989878]
[1641992788134,6.62488,3315.4,3313.9,2.174923]
[1641992788135,0.82626333,3314.0,3313.9,2.174923]
[1641992788336,0.3,3315.4,3314.0,7.85]
[1641992788532,0.3,3315.4,3314.5,1.50832]
[1641992788935,0.1207,3315.7,3314.6,0.00397897]
[1641992789385,0.00170527,3315.6,3314.6,0.00397897]
[1641992789574,0.00170527,3315.6,3314.6,1.41609649]
[1641992789773,0.00113685,3315.5,3314.6,1.41609649]
[1641992790000,0.00113685,3315.5,3314.7,4.08601054]
[1641992790175,0.75596527,3315.6,3314.7,4.08601054]
[1641992790375,0.30170527,3315.6,3314.8,0.00284212]
[1641992790573,0.1207,3315.7,3314.8,0.00284212]
[1641992790574,0.00113685,3315.5,3314.8,0.00284212]
[1641992790978,0.1206,3315.4,3314.8,0.00284212]
[1641992791174,1.50872,3315.2,3314.8,0.00284212]
[1641992791380,0.1206,3315.1,3314.8,0.00284212]
[1641992791581,0.4206,3315.1,3314.8,0.00284212]
[1641992791979,6.84021925,3314.9,3314.8,0.00284212]
[1641992792382,7.14021925,3314.9,3314.8,0.00284212]
[1641992792584,1.69021925,3314.9,3314.2,0.00625266]
[1641992792982,0.90607888,3314.3,3314.2,0.00625266]
[1641992793419,1.69021925,3314.9,3314.2,0.00625266]
[1641992793621,1.69021925,3314.9,3314.1,0.00682108]
[1641992794821,1.81081925,3314.9,3314.1,0.00682108]
[1641992795027,2.11081925,3314.9,3314.1,0.00682108]
[1641992795633,0.75455,3314.6,3314.1,0.00682108]
[1641992795831,1.41619001,3314.4,3314.1,0.00682108]
[1641992796028,0.1206,3314.3,3313.3,3.93516847]
[1641992796227,0.1206,3314.3,3313.4,0.01080005]
[1641992796228,0.90622668,3313.8,3313.4,0.01080005]
[1641992797069,2.25746362,3313.8,3313.4,0.01080005]
[1641992797270,1.35123694,3313.8,3313.4,0.01080005]
[1641992797871,0.4207,3313.7,3313.4,0.01080005]
[1641992799481,0.3,3313.7,3312.8,0.01421059]
[1641992799673,0.1207,3313.6,3312.8,0.01421059]
[1641992800171,1.31482906,3313.0,3312.8,0.01421059]
[1641992800381,1.31482906,3313.0,3311.9,1.26649997]
[1641992800382,7.0207,3312.9,3312.2,6.11]
[1641992800637,7.0207,3312.9,3311.9,1.43879459]
[1641992800638,0.755,3312.7,3312.0,4.2703]
[1641992800821,0.4207,3312.6,3312.3,0.00284211]
[1641992801221,4.37916972,3312.4,3312.3,0.00284211]
[1641992801425,1.52916972,3312.4,3312.3,0.00284211]
[1641992801622,0.1207,3312.7,3312.3,0.00284211]
[1641992801823,1.20559321,3312.8,3312.0,0.00454739]
[1641992801824,0.90559321,3312.8,3312.0,0.00454739]
[1641992802035,0.90559321,3312.8,3312.1,2.57093702]
[1641992802431,0.90559321,3312.8,3312.2,0.00341054]
[1641992802629,0.90559321,3312.8,3312.3,1.21550547]
[1641992802834,0.90559321,3312.8,3312.3,1.97018547]
[1641992803034,0.1207,3314.0,3312.7,0.0127942]
[1641992803233,0.1207,3315.1,3313.5,0.0128036]
[1641992803434,6.276,3315.8,3313.5,0.23515913]
[1641992803435,0.1206,3315.3,3313.5,0.23515913]
[1641992803632,0.0706,3315.7,3313.9,0.01246137]
[1641992803843,0.01421059,3315.3,3314.0,1.50858]
[1641992804033,1.44585945,3314.5,3314.0,1.50858]
[1641992804469,0.90521409,3314.2,3314.0,1.50858]
[1641992804678,0.90521409,3314.2,3313.6,2.57093702]
[1641992804870,0.00738951,3314.1,3313.6,2.57093702]
[1641992805068,0.00738951,3314.1,3313.7,0.75443]
[1641992805282,0.00682108,3314.0,3313.7,0.75443]
[1641992805669,0.00625266,3313.9,3313.7,2.66513866]
[1641992805870,0.00625266,3313.9,3313.8,7.81706901]
[1641992806069,0.90521409,3314.2,3314.0,0.75437]
[1641992806572,0.00738951,3314.1,3313.8,5.95]
[1641992806975,0.00682108,3314.0,3313.8,5.95]
[1641992807282,0.90521409,3314.2,3313.9,8.36919239]
[1641992807476,0.90521409,3314.2,3313.9,10.01169044]
[1641992807675,0.00738951,3314.1,3314.0,1.1206]
[1641992807874,7.71841614,3315.2,3314.1,7.85]
[1641992808116,5.22809997,3316.1,3314.4,0.75414]
[1641992808117,0.1206,3315.6,3314.4,0.75414]
[1641992808315,0.00511581,3315.0,3314.6,0.7541337]
[1641992808515,0.00795793,3315.5,3314.5,2.91399268]
[1641992808714,0.00454739,3314.9,3314.5,2.91399268]
[1641992808926,0.0073895,3315.4,3314.5,2.91399268]
[1641992809115,0.00397896,3314.8,3314.6,0.1206]
[1641992809314,0.1206,3316.0,3314.6,0.1206]
[1641992809315,0.00682108,3315.3,3314.6,1.1206]
[1641992809515,0.1206,3316.0,3314.6,2.628795]
[1641992809716,0.1206,3316.0,3314.6,5.19881014]
[1641992809920,1.52974609,3315.5,3314.6,5.19881014]
[1641992810318,0.0073895,3315.4,3314.6,5.19881014]
[1641992810724,0.00682108,3315.3,3314.9,1.50815]
[1641992811125,0.00625266,3315.2,3314.9,1.50815]
[1641992811423,0.00568423,3315.1,3314.9,1.50815]
[1641992811624,0.00568423,3315.1,3315.0,6.83988403]
[1641992811880,1.19841144,3315.6,3315.0,0.75404]
[1641992812073,0.1206,3316.0,3314.9,1.50815]
[1641992812273,0.01023162,3315.9,3314.9,0.60219972]
[1641992812477,0.1206,3315.8,3314.9,2.4953991]
[1641992812675,0.1302632,3315.8,3314.9,2.4953991]
[1641992812873,0.00909477,3315.7,3314.9,2.4953991]
[1641992813074,0.1206,3315.6,3315.4,1.26326675]
[1641992813274,0.00852635,3315.6,3315.5,3.15]
[1641992813482,0.1206,3316.3,3315.4,0.7539892]
[1641992813681,0.90458251,3316.5,3315.2,1.50802]
[1641992813682,0.1206,3316.4,3315.2,1.50802]
[1641992813877,0.00795793,3315.5,3315.2,1.50802]
[1641992814277,0.1206,3316.4,3315.2,1.50802]
[1641992814278,0.0073895,3315.4,3315.2,1.50802]
[1641992814480,0.0073895,3315.4,3315.1,0.1206]
[1641992814678,0.00682108,3315.3,3315.1,0.1206]
[1641992814878,0.00682108,3315.3,3315.1,0.87471]
[1641992815084,0.1206,3316.4,3315.1,0.87471]
[1641992815085,0.00625266,3315.2,3315.1,0.87471]
[1641992815279,0.00625266,3315.2,3315.0,0.435]
[1641992815481,0.01250531,3315.2,3315.0,0.435]
[1641992815714,0.90490354,3315.3,3315.0,0.435]
[1641992815715,0.00568423,3315.1,3315.0,0.435]
[1641992816919,0.00568423,3315.1,3314.9,4.03722434]
[1641992817119,0.00568423,3315.1,3315.0,0.435]
[1641992817318,0.00568423,3315.1,3314.9,4.03722434]
[1641992817319,0.90491106,3315.3,3314.9,4.03722434]
[1641992817520,0.90496089,3315.1,3314.9,2.52907434]
[1641992817727,0.00511581,3315.0,3314.9,2.52907434]
[1641992819222,0.00511581,3315.0,3314.9,1.62313017]
[1641992819881,0.00511581,3315.0,3314.9,3.48987833]
[1641992820282,0.00511581,3315.0,3314.9,1.62313017]
[1641992820679,0.00511581,3315.0,3314.9,0.7171197]
[1641992821080,0.00511581,3315.0,3314.6,1.87586556]
[1641992821485,0.00454739,3314.9,3314.6,1.87586556]
[1641992821680,0.00454739,3314.9,3314.7,0.1206]
[1641992821882,0.00397896,3314.8,3314.7,0.1206]
[1641992822084,0.00397896,3314.8,3314.6,1.99646556]
[1641992822287,0.00397896,3314.8,3314.6,1.56146556]
[1641992822486,0.00341054,3314.7,3314.6,0.1206]
[1641992822686,0.00341054,3314.7,3314.5,2.91399268]
[1641992823116,0.00284211,3314.6,3314.5,2.91399268]
[1641992825527,0.04608169,3314.5,3313.8,2.82406997]
[1641992825723,0.90619657,3313.9,3313.7,3.9867]
[1641992825922,0.1207,3313.8,3313.7,3.9867]
[1641992826121,0.1207,3314.3,3313.6,3.85474211]
[1641992826322,0.1207,3314.3,3313.7,0.0022737]
[1641992826520,0.42183684,3314.3,3313.7,0.0022737]
[1641992826974,0.75454,3314.2,3313.7,0.0022737]
[1641992827174,1.37963426,3314.1,3313.7,0.0022737]
[1641992827373,0.75454,3314.2,3313.7,0.0022737]
[1641992827374,0.16558964,3314.0,3313.7,0.0022737]
[1641992827574,0.1207,3314.1,3313.3,0.00454739]
[1641992827777,0.1207,3314.2,3313.3,0.00454739]
[1641992828378,1.59944681,3314.2,3313.3,0.00454739]
[1641992828581,1.59944681,3314.2,3313.4,0.75451]
[1641992828776,1.89944681,3314.2,3313.4,0.75451]
[1641992828976,1.89944681,3314.2,3313.2,3.7159]
[1641992828977,2.19944681,3314.2,3313.5,0.00341054]
[1641992829281,0.4207,3314.2,3313.3,2.00454739]
[1641992829476,0.4207,3314.2,3313.3,0.00454739]
[1641992829678,0.1207,3314.2,3313.4,0.00397897]
[1641992829875,0.00113684,3314.3,3313.3,0.00454739]
[1641992830079,0.00113684,3314.3,3313.5,0.7544085]
[1641992830279,0.50456,3314.2,3313.3,0.00454739]
[1641992830822,0.50456,3314.2,3313.2,4.34560636]
[1641992831019,0.00113684,3314.3,3313.2,2.81398248]
[1641992831221,0.75459,3313.9,3313.2,2.81398248]
[1641992831419,0.1207,3313.8,3313.3,2.0]
[1641992831633,0.00284212,3313.8,3313.3,2.0]
[1641992831827,0.1207,3314.4,3313.2,2.81398248]
[1641992831828,0.00227369,3313.7,3313.2,2.81398248]
[1641992832038,0.00227369,3313.7,3313.3,2.14639747]
[1641992832225,0.00170527,3313.6,3313.3,2.14639747]
[1641992832426,0.00170527,3313.6,3313.4,1.50886]
[1641992832626,1.004577,3314.5,3313.4,2.94386]
[1641992832627,0.00113685,3313.5,3313.4,2.94386]
[1641992833029,1.004577,3314.5,3314.2,1.4505702]
[1641992833229,1.004577,3314.5,3314.2,2.1776702]
[1641992833430,0.00511581,3314.5,3314.3,7.85]
[1641992833630,0.1206,3315.8,3314.5,7.85]
[1641992833827,1.81292982,3316.2,3315.4,0.15755786]
[1641992834028,1.81292982,3316.2,3315.4,1.17525786]
[1641992834372,1.81292982,3316.2,3315.5,1.38492344]
[1641992834672,0.1206,3316.1,3315.5,1.23234335]
[1641992834871,0.1206,3316.7,3315.5,1.23234335]
[1641992835072,0.01023162,3316.2,3315.5,1.23234335]
[1641992835271,0.1206,3316.1,3315.5,0.47831335]
[1641992835471,0.1302632,3316.1,3315.5,0.47831335]
[1641992835775,0.00909477,3316.0,3315.4,0.15755786]
[1641992835981,0.1206,3315.9,3315.4,0.15755786]
[1641992836172,0.07912635,3315.9,3315.4,0.15755786]
[1641992836373,0.00795793,3315.8,3315.4,0.15755786]
[1641992836774,0.0073895,3315.7,3315.4,0.15755786]
[1641992837182,0.1206,3316.4,3315.4,0.15755786]
[1641992837183,0.00682108,3315.6,3315.4,0.15755786]
[1641992837580,0.3,3316.5,3315.4,0.15755786]
[1641992837581,0.12685266,3315.5,3315.4,0.15755786]
[1641992837781,0.00625266,3315.5,3315.4,0.15755786]
[1641992838223,0.00625266,3315.5,3315.4,4.95755786]
[1641992839027,0.00625266,3315.5,3315.4,0.15755786]
[1641992839930,0.90595749,3314.8,3314.7,2.0]
[1641992840129,0.90595749,3314.8,3314.7,3.1]
[1641992840342,0.90823118,3314.8,3314.7,3.1]
[1641992840733,0.00227369,3314.8,3314.7,3.1]
[1641992841137,0.00227369,3314.8,3314.7,7.85]
[1641992841534,0.00227369,3314.8,3314.7,10.17781681]
[1641992841736,0.00227369,3314.8,3314.7,9.17781681]
[1641992842581,0.1206,3316.4,3314.8,7.85]
[1641992842778,0.1206,3317.0,3315.6,0.75387]
[1641992842981,0.00511581,3315.7,3315.6,5.99505923]
[1641992843784,0.00511581,3315.7,3315.6,8.99505923]
[1641992845180,0.00511581,3315.7,3315.6,4.14505923]
[1641992846734,0.00511581,3315.7,3315.6,3.23902056]
[1641992850178,0.00511581,3315.7,3315.6,2.63829445]
[1641992850378,0.00511581,3315.7,3315.6,2.33309216]
[1641992851583,0.12571581,3315.7,3315.6,2.33309216]
[1641992851788,0.12571581,3315.7,3314.4,4.8156]
[1641992851789,8.85,3315.6,3314.4,4.8156]
[1641992851982,0.5556,3315.5,3314.4,3.6042]
[1641992852181,0.5556,3315.5,3314.5,0.00170527]
[1641992852182,1.29210818,3315.0,3314.5,0.00170527]
[1641992852388,0.1206,3314.9,3314.5,0.00170527]
[1641992852585,0.1206,3315.1,3314.5,0.00170527]
[1641992852781,0.4206,3315.1,3314.5,0.00170527]
[1641992852981,0.00113685,3315.0,3314.5,0.00170527]
[1641992853226,0.1206,3314.9,3314.5,0.00170527]
[1641992853428,0.87494,3314.9,3314.5,0.00170527]
[1641992853628,1.34678639,3314.7,3314.5,0.00170527]
[1641992853827,0.90597593,3314.7,3314.5,0.00170527]
[1641992854433,0.04547953,3314.6,3314.0,0.00454739]
[1641992854629,0.04547953,3314.6,3313.9,0.00511581]
[1641992854837,1.20597593,3314.7,3314.2,0.75434]
[1641992855030,1.96035593,3314.7,3313.9,0.00511581]
[1641992855232,0.06869541,3314.6,3314.3,0.00284212]
[1641992855435,1.09975958,3314.0,3313.9,0.00511581]
[1641992855636,1.09975958,3314.0,3313.8,0.00568423]
[1641992855937,1.39975958,3314.0,3313.8,0.00568423]
[1641992856336,1.39975958,3314.0,3313.1,0.0096632]
[1641992856539,0.1207,3313.9,3313.3,0.00852635]
[1641992856739,0.1207,3313.9,3313.1,0.0096632]
[1641992857186,0.75461,3313.7,3313.1,0.0096632]
[1641992857589,0.75461,3313.7,3313.0,0.01023162]
[1641992857786,1.20537544,3313.6,3313.0,0.01023162]
[1641992857986,0.90537544,3313.6,3313.0,0.01023162]
[1641992858187,1.36858963,3313.4,3313.0,0.01023162]
[1641992858400,0.90638822,3313.2,3313.0,0.76484162]
[1641992858602,0.3,3313.2,3313.0,0.01023162]
[1641992858789,0.3,3313.2,3313.1,0.0096632]
[1641992859085,1.66858963,3313.4,3313.0,0.01023162]
[1641992859289,0.90537544,3313.6,3313.0,0.76484162]
[1641992859493,0.90537544,3313.6,3313.1,0.7544448]
[1641992859702,0.90537544,3313.6,3313.2,1.50893]
[1641992859892,0.90537544,3313.6,3313.2,1.51802477]
[1641992860090,0.90537544,3313.6,3313.3,0.00852635]
[1641992860290,2.45430109,3313.6,3313.3,0.00852635]
[1641992860491,0.90537544,3313.6,3313.3,0.76299635]
[1641992860921,0.90537544,3313.6,3313.4,0.00795793]
[1641992861322,0.90537544,3313.6,3313.3,0.00852635]
[1641992861567,0.90537544,3313.6,3312.9,2.3625971]
[1641992861726,0.03896004,3313.5,3312.9,2.3625971]
[1641992861926,0.00113685,3313.5,3313.1,0.00113685]
[1641992863328,0.00113685,3313.5,3313.1,0.75571685]
[1641992863530,0.00113685,3313.5,3313.1,3.32647238]
[1641992864130,0.00113685,3313.5,3313.1,2.57189238]
[1641992864599,1.20537544,3313.6,3313.2,5.95]
[1641992864600,1.15651229,3313.6,3313.2,5.95]
[1641992864809,1.91112229,3313.6,3313.2,0.00170527]
[1641992865005,1.91112229,3313.6,3313.3,0.00113685]
[1641992865206,1.91112229,3313.6,3313.0,9.09464455]
[1641992865406,1.91112229,3313.6,3313.1,0.00113685]
[1641992865609,0.90537544,3313.6,3313.1,0.75568685]
[1641992866409,0.90537544,3313.6,3313.1,2.05568685]
[1641992866811,0.90537544,3313.6,3313.3,2.2629815]
[1641992867210,0.15203179,3313.3,3313.2,1.50867]
[1641992867414,0.15203179,3313.3,3313.1,0.00113685]
[1641992867609,0.15203179,3313.3,3313.2,2.57055692]
[1641992868628,0.15203179,3313.3,3313.1,1.00113685]
[1641992868829,0.15203179,3313.3,3313.2,0.75453]
[1641992869769,0.15203179,3313.3,3313.1,1.75570685]
[1641992870130,0.15203179,3313.3,3313.1,0.75570685]
[1641992870439,0.15203179,3313.3,3313.1,0.00113685]
[1641992870931,0.87531,3313.5,3313.1,0.00113685]
[1641992871333,0.3,3313.4,3313.1,0.00113685]
[1641992871532,0.1207,3313.3,3313.1,0.00113685]
[1641992871738,0.3,3313.4,3313.1,0.00113685]
[1641992871978,0.1207,3313.5,3313.1,0.00113685]
[1641992872378,0.1207,3313.5,3313.0,8.18929458]
[1641992872582,0.00170527,3313.4,3313.0,8.18929458]
[1641992872981,0.00113685,3313.3,3313.0,8.18929458]
[1641992873685,0.00113685,3313.3,3313.0,9.69826458]
[1641992874483,0.00113685,3313.3,3313.1,1.0]
[1641992874687,0.00113685,3313.3,3313.1,0.09351044]
[1641992874884,0.00113685,3313.3,3313.1,1.98455284]
[1641992875122,0.00113685,3313.3,3313.1,1.93455284]
[1641992875285,0.00113685,3313.3,3313.2,3.80442]
[1641992876628,0.00113685,3313.3,3313.2,5.72471887]
[1641992876829,0.00113685,3313.3,3313.2,3.80442]
[1641992877028,0.00113685,3313.3,3313.2,5.7261887]
[1641992877831,0.1207,3314.2,3313.3,7.85]
[1641992878036,0.1207,3314.5,3313.4,4.25685855]
[1641992878231,0.1207,3314.9,3313.8,1.35628261]
[1641992878432,0.1207,3314.9,3313.5,2.0013089]
[1641992878632,0.12979478,3314.9,3313.6,3.6369]
[1641992878831,1.19930042,3314.6,3313.6,3.6369]
[1641992879234,0.00682108,3314.5,3313.9,1.50859]
[1641992879681,0.00625266,3314.4,3313.9,1.50859]
[1641992880078,0.00568423,3314.3,3313.6,3.6369]
[1641992880492,0.00511581,3314.2,3313.6,3.6369]
[1641992880682,1.1543533,3314.1,3313.6,3.6369]
[1641992880881,0.1207,3314.0,3313.6,3.6369]
[1641992881083,0.12467896,3314.0,3313.6,3.6369]
[1641992881278,0.00341054,3313.9,3313.6,3.6369]
[1641992881481,0.0707,3313.8,3313.6,3.6369]
[1641992881681,0.00284212,3313.8,3313.6,3.6369]
[1641992881882,4.80227369,3313.7,3313.0,8.18929458]
[1641992882085,1.14318073,3313.3,3313.0,8.18929458]
[1641992882282,0.16007277,3313.6,3313.0,8.18929458]
[1641992882283,0.12240527,3313.6,3313.0,8.18929458]
[1641992882483,0.42240527,3313.6,3313.0,8.18929458]
[1641992882684,0.00113685,3313.5,3313.0,8.18929458]
[1641992882897,0.90637453,3313.2,3313.0,8.18929458]
[1641992883152,0.90637453,3313.2,3313.1,7.71751269]
[1641992883343,0.90637453,3313.2,3313.1,7.78219536]
[1641992884142,0.90637453,3313.2,3313.1,7.70598154]
[1641992884743,0.90637453,3313.2,3313.1,5.8]
[1641992885043,0.90637453,3313.2,3313.0,8.94385458]
[1641992885645,0.90637453,3313.2,3313.1,10.72642001]
[1641992885848,0.90637453,3313.2,3313.1,10.73917733]
[1641992886045,0.90654552,3313.5,3313.1,10.73917733]
[1641992886248,0.90654552,3313.5,3313.3,0.75437]
[1641992886449,0.90654552,3313.5,3313.4,5.76413771]
[1641992886650,0.90654552,3313.5,3313.4,6.76413771]
[1641992886875,0.90654552,3313.5,3313.4,4.8]
[1641992887080,0.90654552,3313.5,3313.4,6.66341756]
[1641992887481,0.90654552,3313.5,3313.4,3.5]
[1641992887681,0.90654552,3313.5,3313.4,5.39615623]
[1641992888086,0.90654552,3313.5,3313.4,3.5]
[1641992888282,0.90654552,3313.5,3313.4,2.5]
[1641992888685,0.90654552,3313.5,3313.3,0.75437]
[1641992889585,0.90654552,3313.5,3313.4,6.60578817]
[1641992891636,0.90654552,3313.5,3313.4,1.90578817]
[1641992891835,0.90654552,3313.5,3313.3,0.75437]
[1641992892035,0.90654552,3313.5,3313.3,1.75437]
[1641992892235,0.90654552,3313.5,3313.3,0.75437]
[1641992892434,0.90654552,3313.5,3313.3,1.75437]
[1641992893637,0.90654552,3313.5,3313.3,0.75437]
[1641992894237,0.90654552,3313.5,3313.0,10.45269458]
[1641992894484,0.90654552,3313.5,3313.0,8.94386458]
[1641992894684,1.02724552,3313.5,3313.3,3.0]
[1641992895185,0.90654552,3313.5,3313.3,3.0]
[1641992895583,5.02611821,3313.4,3313.3,3.0]
[1641992895789,1.02611821,3313.4,3313.3,2.09437258]
[1641992895983,1.93245988,3313.4,3313.3,2.09437258]
[1641992896786,1.02611821,3313.4,3313.3,2.09437258]
[1641992897787,0.1207,3313.4,3313.3,2.09437258]
[1641992898827,0.12183685,3313.5,3313.3,2.09437258]
[1641992899030,0.00113685,3313.5,3313.3,2.09437258]
[1641992899328,0.00113685,3313.5,3313.3,1.1878255]
[1641992900230,0.00113685,3313.5,3313.3,1.07239648]
[1641992900433,0.00113685,3313.5,3312.1,1.43879459]
[1641992900434,0.44795144,3313.4,3312.1,1.43879459]
[1641992900633,0.04645808,3313.0,3311.9,1.43879459]
[1641992900835,0.7549327,3312.5,3312.2,0.00738951]
[1641992901034,0.1207,3312.4,3312.2,0.00738951]
[1641992901231,0.1207,3312.4,3311.9,1.3556641]
[1641992901529,0.1207,3312.4,3311.9,1.34981095]
[1641992901730,0.05213274,3312.3,3311.7,7.27276016]
[1641992901986,0.05213274,3312.3,3311.5,5.34668]
[1641992901987,0.00170528,3312.3,3311.8,2.57167081]
[1641992902187,0.00113685,3312.2,3311.8,2.57280765]
[1641992902385,0.00113685,3312.2,3311.8,2.57167081]
[1641992903193,0.00113685,3312.2,3311.6,3.3288245]
[1641992903597,0.00113685,3312.2,3311.7,0.00170527]
[1641992904393,0.00113685,3312.2,3311.7,2.57337608]
[1641992904593,0.5557,3312.1,3311.7,2.57337608]
[1641992904790,0.75502,3312.0,3311.7,1.64119644]
[1641992905025,0.1128,3311.9,3311.7,1.64119644]
[1641992905191,0.1128,3311.9,3311.4,1.0046567]
[1641992905192,0.04773478,3311.8,3311.4,1.0046567]
[1641992905394,0.1207,3311.7,3311.4,1.0046567]
[1641992905627,0.1207,3311.8,3311.5,0.00113684]
[1641992905828,0.7953294,3311.7,3311.5,0.00113684]
[1641992906028,0.7550993,3311.7,3311.5,0.00113684]
[1641992907132,1.5102793,3311.7,3311.5,0.00113684]
[1641992907534,0.3,3311.6,3311.5,0.00113684]
[1641992910184,0.33686997,3311.6,3311.4,0.09850895]
[1641992910384,0.3,3311.6,3311.4,0.09850895]
[1641992910587,0.1207,3311.8,3311.5,0.1207]
[1641992910984,0.00113685,3311.7,3311.5,0.1207]
[1641992911587,0.00113685,3311.7,3311.4,0.09850895]
[1641992911786,0.00113685,3311.7,3311.4,0.16920895]
[1641992911988,0.00113685,3311.7,3311.4,0.04850895]
[1641992912587,0.00113685,3311.7,3311.5,0.1207]
[1641992912790,0.00113685,3311.7,3311.3,0.01718706]
[1641992912988,1.42486342,3312.3,3311.3,0.01718706]
[1641992913223,1.42486342,3312.3,3311.4,5.7707]
[1641992913424,0.00227369,3312.1,3311.4,5.77240528]
[1641992913623,0.00227369,3312.1,3311.5,0.00113685]
[1641992913824,0.00170526,3312.0,3311.5,0.00113685]
[1641992914224,0.00113684,3311.9,3311.3,0.0022737]
[1641992915232,0.7549986,3311.8,3311.3,0.0022737]
[1641992915830,0.7549986,3311.8,3311.1,0.00341055]
[1641992916031,0.7549986,3311.8,3311.2,0.1207]
[1641992916231,0.78622528,3311.2,3311.1,0.00341055]
[1641992916432,0.78622528,3311.2,3311.0,0.755]
[1641992916635,0.78622528,3311.2,3311.0,2.08716506]
[1641992917079,0.00113684,3311.9,3311.1,7.85]
[1641992917279,0.00113684,3311.9,3311.5,0.75485]
[1641992917885,0.00113684,3311.9,3311.5,2.31677186]
[1641992918284,0.00113684,3311.9,3311.6,0.75478]
[1641992918486,0.00113684,3311.9,3311.8,8.35466]
[1641992919298,0.00113684,3311.9,3311.8,9.35466]
[1641992919689,0.90788846,3311.9,3311.8,9.35466]
[1641992919888,0.90788846,3311.9,3311.8,8.35466]
[1641992920090,0.90788846,3311.9,3311.8,0.75466]
[1641992921227,0.90788846,3311.9,3311.7,1.50931]
[1641992922031,0.00113684,3311.9,3311.7,1.50931]
[1641992922830,0.00113684,3311.9,3311.5,1.50968]
[1641992923033,0.00113684,3311.9,3311.5,3.0193]
[1641992923833,0.00113684,3311.9,3311.7,0.75487]
[1641992924580,0.00113684,3311.9,3311.7,1.05487]
[1641992924778,0.00113684,3311.9,3311.7,1.35487]
[1641992924982,0.00113684,3311.9,3311.7,1.05487]
[1641992925184,0.00113684,3311.9,3311.7,2.26439]
[1641992925585,0.00113684,3311.9,3311.7,5.26439]
[1641992925989,0.00113684,3311.9,3311.7,3.0]
[1641992926190,0.00113684,3311.9,3311.7,2.09309391]
[1641992926995,0.00113684,3311.9,3311.7,2.84796391]
[1641992927388,0.00113684,3311.9,3311.7,2.09309391]
[1641992929333,0.00113684,3311.9,3311.7,2.84795391]
[1641992929940,0.1207,3312.4,3311.8,4.7]
[1641992930139,0.1207,3312.4,3311.7,2.84795391]
[1641992930339,0.0022737,3312.3,3311.7,2.84795391]
[1641992930741,0.00170527,3312.2,3311.7,2.84795391]
[1641992930941,0.00170527,3312.2,3311.7,3.60278391]
[1641992931141,0.00113685,3312.1,3311.7,3.60278391]
[1641992931343,0.00113685,3312.1,3311.7,2.84795391]
[1641992931543,0.00341054,3312.5,3311.7,2.84795391]
[1641992931743,0.7548575,3312.4,3311.7,2.84795391]
[1641992931980,0.00284212,3312.4,3311.7,2.09309391]
[1641992932184,0.00284212,3312.4,3311.7,1.18622346]
[1641992932581,0.0368453,3312.3,3311.7,1.18622346]
[1641992932784,0.1207,3312.2,3311.7,1.18622346]
[1641992932982,0.00170527,3312.2,3311.7,1.18622346]
[1641992933180,0.05035847,3312.0,3311.7,1.18622346]
[1641992933383,0.05035847,3312.0,3311.7,0.2793645]
[1641992933584,0.0494823,3312.1,3311.7,0.2793645]
[1641992933781,0.1207,3312.1,3311.7,0.2793645]